Workbook

Sheet Лист1
B1: =B2+B6 -> 910
B2: =SUM(B3:B5) -> 490
A3: 1 | B3: =90+$C$3 -> 90
A4: 1 | B4: =100+$C$4 -> 100
A5: 1 | B5: =300+$C$5 -> 300
B6: =SUM(B7:B9) -> 420
A7: 1 | B7: =70+$C$7 -> 70
A8: 1 | B8: =200+$C$8 -> 200
A9: 1 | B9: =150+$C$9 -> 150
B10: =B11+B15 -> 270
B11: =SUM(B12:B14) -> 140
A12: 1 | B12: =90+$C$12 -> 90
A13: 1 | B13: =0+$C$13 -> 0
A14: 1 | B14: =50+$C$14 -> 50
B15: =SUM(B16:B18) -> 130
A16: 1 | B16: =0+$C$16 -> 0
A17: 1 | B17: =100+$C$17 -> 100
A18: 1 | B18: =30+$C$18 -> 30
B19: =B1+B10 -> 1180
E21: После применения 1-го макроса должно получиться так
B26: =B27+B31 -> 640 | C26: =C27+C31 -> 0
B27: =SUM(B28:B30) -> 320 | C27: =SUM(C28:C30) -> 0
A28: 1 | B28: 70
A29: 1 | B29: 100
A30: 1 | B30: 150
B31: =SUM(B32:B34) -> 320 | C31: =SUM(C32:C34) -> 0
A32: 1 | B32: 70
A33: 1 | B33: 100
A34: 1 | B34: 150
B35: =B36+B40 -> 200 | C35: =C36+C40 -> 0
B36: =SUM(B37:B39) -> 110 | C36: =SUM(C37:C39) -> 0
A37: 1 | B37: 60
A38: 1 | B38: 0
A39: 1 | B39: 50
B40: =SUM(B41:B43) -> 90 | C40: =SUM(C41:C43) -> 0
A41: 1 | B41: 0
A42: 1 | B42: 60
A43: 1 | B43: 30
B44: =B26+B35 -> 840 | C44: =C26+C35 -> 0
E46: После применения 2-го макроса должно получиться так
B51: =B52+B56 -> 640 | C51: =C52+C56 -> 0
B52: =SUM(B53:B55) -> 320 | C52: =SUM(C53:C55) -> 0
A53: 1 | B53: =70+C53 -> 70
A54: 1 | B54: =100+C54 -> 100
A55: 1 | B55: =150+C55 -> 150
B56: =SUM(B57:B59) -> 320 | C56: =SUM(C57:C59) -> 0
A57: 1 | B57: =70+C57 -> 70
A58: 1 | B58: =100+C58 -> 100
A59: 1 | B59: =150+C59 -> 150
B60: =B61+B65 -> 200 | C60: =C61+C65 -> 0
B61: =SUM(B62:B64) -> 110 | C61: =SUM(C62:C64) -> 0
A62: 1 | B62: =60+C62 -> 60
A63: 1 | B63: =C63 -> 0
A64: 1 | B64: =50+C64 -> 50
B65: =SUM(B66:B68) -> 90 | C65: =SUM(C66:C68) -> 0
A66: 1 | B66: =C66 -> 0
A67: 1 | B67: =60+C67 -> 60
A68: 1 | B68: =30+C68 -> 30
B69: =B51+B60 -> 840 | C69: =C51+C60 -> 0
